Workbook

Sheet 3月
A1: 兴蜀公司管理项目投资及形象进度完成情况（截止2017年3月底）
M2: 统计：工程部
A3: 序号 | B3: 项目名称 | C3: 建设规模 (Km) | D3: 概算投资(亿元) | E3: 本年计划（亿元） | F3: 本月完成（亿元） | G3: 本年完成（亿元） | H3: 占年计划（%） | I3: 开工累计 完成（亿元） | K3: 占概算投资（%） | L3: 累计支付金额(万元） | M3: 累计形象进度完成情况
I4: 全部 | J4: 其中 建安
A5: 1 | B5: 雪山梁子 | C5: 隧道:7.966 | D5: 12.12 | E5: 1.36 | F5: 0.1145 | G5: 0.1145 | H5: =G5/E5 -> 8.4% | I5: 9.5113 | J5: 8.225 | K5: =I5/D5 -> 78.5% | L5: 70619 | M5: 累计完成：路基土石方101.18万方，占总量的94.6%；挡防工程隧道2.77万方，占总量的51.9%；主洞开挖7965米，占总长度7966米的100%；隧道衬砌7820米，占总量的98%;洞外路面下面层完成2.8万平米，占总量的19.2%。
C6: 引道:10.946
A7: 2 | B7: 布拖冯家坪溜索改桥 | C7: 7.834 | D7: 1.03 | E7: 0.34 | F7: 0.0373 | G7: 0.0373 | H7: =G7/E7 -> 11.0% | I7: 0.5952 | J7: 0.3772 | K7: =I7/D7 -> 57.8% | L7: 2688 | M7: 累计完成：路基土石方0.21万立方米，占总量的48.8%；桥梁下部构造89.6%，劲性骨架加工完成85%，安装完成66.7%。
A8: 3 | B8: 金阳对坪溜索改桥 | C8: 1.7 | D8: 1.34 | E8: 0.44 | F8: 0.0427 | G8: 0.0427 | H8: 9.7% | I8: 0.5476 | J8: 0.4276 | K8: 40.9% | L8: 3570 | M8: 累计完成：路基土石方8.14万立方米，占总量的98%；挡防工程2.25万立方米，占总量的98.78%。桥梁下部构造完成47.6%，劲性骨架加工完成100%，安装完成40.7%
A9: 4 | B9: 箐口山隧道 | C9: 5.855 | D9: 2.09033 | E9: 0.88 | F9: 0.1376 | G9: 0.1376 | H9: 15.6% | I9: 0.7976 | J9: 0.7176 | K9: 38.2% | L9: 5165 | M9: 累计完成：路基土石方36.44万立方米，占总量的77.2%；挡防工程2.41万立方米，占总量的100%；隧道开挖1026米，占总量2281米的45.1%；隧道衬砌570米，占总量2281米的25%。
A10: 5 | B10: 大雷路 | C10: 90.74 | D10: 3.867 | E10: 1.56 | F10: 0.2899 | G10: 0.2899 | H10: 18.6% | I10: 1.6681 | J10: 1.3479 | K10: 43.1% | L10: 8168 | M10: 累计完成：路基土石方27.62万立方米，占总量的67.8%；挡防工程6.45万立方米，占总量的76.9%；涵洞工程完成总量的74.2%。
A11: 6 | B11: 俄安路 | C11: 32.4 | D11: 2.5997 | E11: 1.16 | F11: 0.0165 | G11: 0.0165 | H11: 1.4% | I11: 1.2661 | J11: 0.975 | K11: 48.7% | L11: 8486 | M11: 累计完成：路基土石方64.83万立方米，占总量的49.8%；挡防工程7.99万立方米，占总量的72.7%；涵洞工程完成总量的62.1%。
A12: 7 | B12: 海磨路 | C12: 53.5 | D12: 3.855 | E12: 1.33 | H12: 0.0% | I12: 1.449 | J12: 1.1355 | K12: 37.6% | L12: 8668 | M12: 累计完成：路基土石方148.32万立方米，占总量的98%；挡防工程1.52万立方米，占总量的25.1%，涵洞工程完成总量的67.3%。路面底基层完成36.8%，路面基层完成36.5%。
A13: 8 | B13: 桑然路 | C13: 103.14 | D13: 21.42 | E13: 5.03 | F13: 0.1194 | G13: 0.1194 | H13: 2.4% | I13: 2.1887 | J13: 1.2415 | K13: 10.2% | L13: 11675 | M13: 累计完成：路基土石方71.92万立方米，占总量的23.5%；挡防工程1.7万立方米，占总量的4%；桥梁桩基7根，占总量的3.2%。
A14: 9 | B14: 唐花路 | C14: 95.57 | D14: 5.8033 | E14: 1.77 | F14: 0.0085 | G14: 0.0085 | H14: 0.5% | I14: 0.0085 | J14: 0.0085 | K14: 0.1% | M14: 完成驻地建设
A15: 10 | B15: 理小路 | C15: 96.44 | E15: 3 | F15: 0.0105 | G15: 0.0105 | H15: =G15/E15 -> 0.4% | I15: 0.0105 | J15: 0.0105 | M15: 完成驻地建设
A16: 11 | B16: 理黑路 | E16: 0.8
A17: 12 | B17: 色泥路 | C17: 150.981 | D17: 11.8069 | E17: 3.48
A18: 13 | B18: 色锣路 | C18: 106.672 | D18: 9.7665 | E18: 2.9
A19: 14 | B19: 稻木路 | E19: 1.2
A20: 合计 | E20: =SUM(E5:E19) -> 25.25 | F20: =SUM(F5:F19) -> 0.7769 | G20: =SUM(G5:G19) -> 0.7769 | H20: 3.1% | I20: =SUM(I5:I19) -> 18.0426 | J20: =SUM(J5:J19) -> 14.4663 | L20: =SUM(L5:L19) -> 119039

Sheet 4月
A1: 兴蜀公司管理项目投资及形象进度完成情况（截止2017年4月底）
M2: 统计：工程部
A3: 序号 | B3: 项目名称 | C3: 建设规模 (Km) | D3: 概算投资(亿元) | E3: 本年计划（亿元） | F3: 本月完成（亿元） | G3: 本年完成（亿元） | H3: 占年计划（%） | I3: 开工累计 完成（亿元） | K3: 占概算投资（%） | L3: 累计支付金额(万元） | M3: 累计形象进度完成情况
I4: 全部 | J4: 其中 建安
A5: 1 | B5: 雪山梁子 | C5: 隧道:7.966 | D5: 12.12 | E5: 1.36 | F5: 0.2034 | G5: 0.3179 | H5: =G5/E5 -> 23.4% | I5: 9.7147 | J5: 8.4284 | K5: =I5/D5 -> 80.2% | L5: 70619 | M5: 累计完成：路基土石方104.06万方，占总量的97.7%；挡防工程隧道2.77万方，占总量的51.9%；主洞开挖7965米，占总长度7966米的100%；隧道衬砌7820米，占总量的98%;洞外路面下面层完成3.6万平米，占总量的24.6%,上面层完成0.5万平米,占总量的3.7%。
C6: 引道:10.946
A7: 2 | B7: 布拖冯家坪溜索改桥 | C7: 7.834 | D7: 1.03 | E7: 0.34 | F7: 0.0211 | G7: 0.0584 | H7: =G7/E7 -> 17.2% | I7: 0.6163 | J7: 0.3983 | K7: =I7/D7 -> 59.8% | L7: 2688 | M7: 累计完成：路基土石方0.21万立方米，占总量的48.8%；桥梁下部构造93%，劲性骨架加工完成92.6%，安装完成92.6%。
A8: 3 | B8: 金阳对坪溜索改桥 | C8: 1.7 | D8: 1.34 | E8: 0.44 | F8: 0.0409 | G8: 0.0836 | H8: 19.0% | I8: 0.5885 | J8: 0.4685 | K8: 43.9% | L8: 3570 | M8: 累计完成：路基土石方8.14万立方米，占总量的98%；挡防工程2.25万立方米，占总量的98.78%。桥梁下部构造完成47.6%，劲性骨架加工完成100%，安装完成100%
A9: 4 | B9: 箐口山隧道 | C9: 5.855 | D9: 2.09033 | E9: 0.88 | F9: 0.0909 | G9: 0.2284 | H9: 26.0% | I9: 0.8885 | J9: 0.8085 | K9: 42.5% | L9: 5165 | M9: 累计完成：路基土石方41.44万立方米，占总量的87.6%；挡防工程2.41万立方米，占总量的100%；隧道开挖1269米，占总量2281米的55.6%；隧道衬砌924米，占总量2281米的40.5%。
A10: 5 | B10: 大雷路 | C10: 90.74 | D10: 3.867 | E10: 1.56 | F10: 0.0836 | G10: 0.3735 | H10: 23.9% | I10: 1.7517 | J10: 1.4315 | K10: 45.3% | L10: 8168 | M10: 累计完成：路基土石方29.62万立方米，占总量的72.7%；挡防工程6.63万立方米，占总量的79.3%；涵洞工程完成总量的94%;路面底基层完成总量的50.5%，路面基层完成总量的38.1%，路面下面层完成总量的25.6%。
A11: 6 | B11: 俄安路 | C11: 32.4 | D11: 2.5997 | E11: 1.16 | F11: 0.1248 | G11: 0.1413 | H11: 12.2% | I11: 1.3909 | J11: 1.0998 | K11: 53.5% | L11: 8486 | M11: 累计完成：路基土石方67.23万立方米，占总量的49.9%；挡防工程9.5万立方米，占总量的86.7%；涵洞工程完成总量的66.7%;桥梁下部完成总量的80%,梁板预制完成总量的67.6%;路面底基层完成1.5万平米,占总量的6%.
A12: 7 | B12: 海磨路 | C12: 53.5 | D12: 3.847 | E12: 1.33 | F12: 0.016 | G12: 0.016 | H12: 1.2% | I12: 1.465 | J12: 1.1515 | K12: 38.1% | L12: 8668 | M12: 累计完成：路基土石方148.32万立方米，占总量的98%；挡防工程1.52万立方米，占总量的25.1%，涵洞工程完成总量的67.3%。路面垫层完成78.1%,路面底基层完成36.8%，路面基层完成36.5%。
A13: 8 | B13: 桑然路 | C13: 103.14 | D13: 21.42 | E13: 5.03 | F13: 0.2628 | G13: 0.3822 | H13: 7.6% | I13: 2.4515 | J13: 1.5043 | K13: 11.4% | L13: 11675 | M13: 累计完成：路基土石方91.11万立方米，占总量的29.8%；挡防工程4.39万立方米，占总量的10.3%,涵洞完成占总量的1%；桥梁桩基23根，占总量的10.6%；隧道掘进21米，占总量5847米的0.3%。
A14: 9 | B14: 唐花路 | C14: 95.57 | D14: 5.8033 | E14: 1.77 | F14: 0.0362 | G14: 0.0447 | H14: 2.5% | I14: 0.0447 | J14: 0.0447 | K14: 0.8% | M14: 完成临时工程和设施
A15: 10 | B15: 理小路 | C15: 96.44 | E15: 3 | F15: 0.002 | G15: 0.0125 | H15: =G15/E15 -> 0.4% | I15: 0.0125 | J15: 0.0125 | M15: 累计完成：挡防工程0.025万立方米，占总量的0.8%。
A16: 11 | B16: 理黑路 | E16: 0.8
A17: 12 | B17: 色泥路 | C17: 150.981 | D17: 11.8069 | E17: 3.48 | F17: 0.1149 | G17: 0.1149 | H17: =G17/E17 -> 3.3% | I17: 0.1149 | J17: 0.1149 | K17: =I17/D17 -> 1.0% | M17: 完成驻地建设、临时设施。
A18: 13 | B18: 色锣路 | C18: 106.672 | D18: 9.7665 | E18: 2.9 | F18: 0.1206 | G18: 0.1206 | H18: =G18/E18 -> 4.2% | I18: 0.1206 | J18: 0.1206 | K18: =I18/D18 -> 1.2% | M18: 累计完成：路基土石方2.66万方，占总量的1.2%。
A19: 14 | B19: 稻木路 | C19: 26.362 | D19: 4.31 | E19: 1.2
A20: 合计 | E20: =SUM(E5:E19) -> 25.25 | F20: =SUM(F5:F19) -> 1.1172 | G20: =SUM(G5:G19) -> 1.894 | H20: 7.5% | I20: =SUM(I5:I19) -> 19.1598 | J20: =SUM(J5:J19) -> 15.5835 | L20: =SUM(L5:L19) -> 119039

Sheet 5月
A1: 兴蜀公司管理项目投资及形象进度完成情况（截止2017年5月底）
M2: 统计：工程部
A3: 序号 | B3: 项目名称 | C3: 建设规模 (Km) | D3: 概算投资(亿元) | E3: 本年计划（亿元） | F3: 本月完成（亿元） | G3: 本年完成（亿元） | H3: 占年计划（%） | I3: 开工累计 完成（亿元） | K3: 占概算投资（%） | L3: 累计支付金额(万元） | M3: 累计形象进度完成情况
I4: 全部 | J4: 其中 建安
A5: 1 | B5: 雪山梁子 | C5: 隧道:7.966 | D5: 12.12 | E5: 1.36 | F5: 0.3077 | G5: 0.6256 | H5: =G5/E5 -> 46.0% | I5: 10.0224 | J5: 8.7181 | K5: =I5/D5 -> 82.7% | L5: 70619 | M5: 累计完成：路基土石方104.06万方，占总量的97.7%；挡防工程隧道2.79万方，占总量的75.8%；主洞开挖7965米，占总量的100%；隧道衬砌7940米，占总量的100%;洞外路面底基层完成占总量的93%，基层完成占总量的54%，下面层完成占总量的68.2%,上面层完成占总量的45.2%。
C6: 引道:10.946
A7: 2 | B7: 布拖冯家坪溜索改桥 | C7: 7.834 | D7: 1.03 | E7: 0.34 | F7: 0.0534 | G7: 0.1118 | H7: =G7/E7 -> 32.9% | I7: 0.6697 | J7: 0.4027 | K7: =I7/D7 -> 65.0% | L7: 2688 | M7: 累计完成：路基土石方0.21万立方米，占总量的48.8%；桥梁下部构造93%，劲性骨架全部完成，主拱圈劲性骨架钢管混凝土浇筑，主桥拱肋合拢。
A8: 3 | B8: 金阳对坪溜索改桥 | C8: 1.7 | D8: 1.34 | E8: 0.44 | F8: 0.0716 | G8: 0.1552 | H8: 35.3% | I8: 0.6601 | J8: 0.4951 | K8: 49.3% | L8: 3570 | M8: 累计完成：路基土石方8.31万立方米，占总量的100%；挡防工程2.25万立方米，占总量的98.78%。桥梁下部构造完成47.6%，劲性骨架加工完成100%，安装完成100%
A9: 4 | B9: 箐口山隧道 | C9: 5.855 | D9: 2.09033 | E9: 0.88 | F9: 0.1315 | G9: 0.3599 | H9: 40.9% | I9: 1.02 | J9: 0.905 | K9: 48.8% | L9: 5165 | M9: 累计完成：路基土石方42.44万立方米，占总量的89.8%；挡防工程2.41万立方米，占总量的100%；隧道开挖1469米，占总量2281米的64.4%；隧道衬砌1146米，占总量2281米的50.2%。
A10: 5 | B10: 大雷路 | C10: 90.74 | D10: 3.867 | E10: 1.56 | F10: 0.2037 | G10: 0.5772 | H10: 37.0% | I10: 1.9554 | J10: 1.5253 | K10: 50.6% | L10: 8168 | M10: 累计完成：路基土石方34.7万立方米，占总量的78.2%；挡防工程6.98万立方米，占总量的86%；涵洞工程完成总量的94%;路面底基层完成总量的53.6%，路面基层完成总量的50%，路面下面层完成总量的38.2%，路面上面层完成总量的4.1%。
A11: 6 | B11: 俄安路 | C11: 32.4 | D11: 2.5997 | E11: 1.16 | F11: 0.1925 | G11: 0.3338 | H11: 28.8% | I11: 1.5834 | J11: 1.2293 | K11: 60.9% | L11: 8486 | M11: 累计完成：路基土石方75.73万立方米，占总量的95.7%；挡防工程11.48万立方米；涵洞工程完成总量的79.3%;桥梁下部完成总量的80%,梁板预制完成总量的86.5%;路面底基层完成1.5万平米,占总量的6%.
A12: 7 | B12: 海磨路 | C12: 53.5 | D12: 3.847 | E12: 1.33 | F12: 0.152 | G12: 0.168 | H12: 12.6% | I12: 1.617 | J12: 1.2155 | K12: 42.0% | L12: 8668 | M12: 累计完成：路基土石方150.82万立方米，占总量的99.7%；挡防工程1.86万立方米，占总量的34.7%，涵洞工程完成总量的67.3%。梁板预制完成总量的58.6%,安装完成总量的7.6%；路面垫层完成87.6%,路面底基层完成42.8%，路面基层完成42.5%。
A13: 8 | B13: 桑然路 | C13: 103.14 | D13: 21.42 | E13: 5.03 | F13: 0.7358 | G13: 1.118 | H13: 22.2% | I13: 3.1873 | J13: 1.9601 | K13: 14.9% | L13: 11675 | M13: 累计完成：路基土石方122.43万立方米，占总量的40%；挡防工程8.24万立方米，占总量的19.3%,涵洞完成占总量的8.7%；桥梁桩基56根，占总量的25.9%，梁板预制1片；隧道掘进67米，占总量5847米的1.1%。
A14: 9 | B14: 唐花路 | C14: 95.57 | D14: 5.8033 | E14: 1.77 | F14: 0.1317 | G14: 0.1764 | H14: 10.0% | I14: 0.1764 | J14: 0.0464 | K14: 3.0% | M14: 累计完成：路基土石方0.2万方
A15: 10 | B15: 理小路 | C15: 96.44 | E15: 3 | F15: 0.4361 | G15: 0.4486 | H15: =G15/E15 -> 15.0% | I15: 0.4486 | J15: 0.0286 | M15: 累计完成：挡防工程0.2万立方米，占总量的6.4%，桥梁桩基22米。
A16: 11 | B16: 理黑路 | E16: 0.8
A17: 12 | B17: 色泥路 | C17: 150.981 | D17: 11.8069 | E17: 3.48 | F17: 0.7947 | G17: 0.9096 | H17: =G17/E17 -> 26.1% | I17: 0.9096 | J17: 0.6646 | K17: =I17/D17 -> 7.7% | M17: 累计完成：路基土石方90.11万方，占总量的34.1%；挡防工程2.67万方，占总量的12.2%；涵洞工程完成总量的4.7%；桥梁桩基20根，占总量的66.6%.
A18: 13 | B18: 色锣路 | C18: 106.672 | D18: 9.7665 | E18: 2.9 | F18: 0.5669 | G18: 0.6875 | H18: =G18/E18 -> 23.7% | I18: 0.6875 | J18: 0.4775 | K18: =I18/D18 -> 7.0% | M18: 累计完成：路基土石方25.89万方，占总量的11.3%，挡防工程2.18万方，占总量的8.2%；涵洞完成总量的4.1%；桥梁桩基完成33.6%。
A19: 14 | B19: 稻木路 | C19: 26.362 | D19: 4.31 | E19: 1.2
A20: 合计 | E20: =SUM(E5:E19) -> 25.25 | F20: =SUM(F5:F19) -> 3.7776 | G20: =SUM(G5:G19) -> 5.6716 | H20: 22.5% | I20: =SUM(I5:I19) -> 22.9374 | J20: =SUM(J5:J19) -> 17.6682 | L20: =SUM(L5:L19) -> 119039

Sheet 6月
A1: 兴蜀公司管理项目投资及形象进度完成情况（截止2017年6月底）
M2: 统计：工程部
A3: 序号 | B3: 项目名称 | C3: 建设规模 (Km) | D3: 概算投资(亿元) | E3: 本年计划（亿元） | F3: 本月完成（亿元） | G3: 本年完成（亿元） | H3: 占年计划（%） | I3: 开工累计 完成（亿元） | K3: 占概算投资（%） | L3: 累计支付金额(万元） | M3: 累计形象进度完成情况
I4: 全部 | J4: 其中 建安
A5: 1 | B5: 雪山梁子 | C5: 隧道:7.966 | D5: 12.12 | E5: 1.36 | F5: 0.327 | G5: 0.9526 | H5: =G5/E5 -> 70.0% | I5: 10.3494 | J5: 9.0451 | K5: =I5/D5 -> 85.4% | L5: 70619 | M5: 累计完成：路基土石方106.43万方，占总量的100%；挡防工程隧道3.27万方，占总量的93.4%；涵洞完成100%；主洞开挖7965米，占总量的100%；隧道衬砌7940米，占总量的100%;洞外路面底基层完成占总量的100%，基层完成占总量的100%，下面层完成占总量的100%,上面层完成占总量的91.7%。
C6: 引道:10.946
A7: 2 | B7: 布拖冯家坪溜索改桥 | C7: 7.834 | D7: 1.03 | E7: 0.34 | F7: 0.02 | G7: 0.1318 | H7: =G7/E7 -> 38.8% | I7: 0.6897 | J7: 0.4227 | K7: =I7/D7 -> 67.0% | L7: 2688 | M7: 累计完成：路基土石方0.21万立方米，占总量的48.8%；桥梁下部构造93%，劲性骨架全部完成，主拱圈劲性骨架钢管混凝土浇筑，主桥拱肋合拢。拱圈混凝土完成总量的4.3%。
A8: 3 | B8: 金阳对坪溜索改桥 | C8: 1.7 | D8: 1.34 | E8: 0.44 | F8: 0.02 | G8: 0.1752 | H8: 39.8% | I8: 0.6801 | J8: 0.5151 | K8: 50.8% | L8: 3570 | M8: 累计完成：路基土石方8.31万立方米，占总量的100%；挡防工程2.25万立方米，占总量的98.78%。桥梁下部构造完成47.6%，劲性骨架加工完成100%，安装完成100%；钢管混凝土完成总量的83.45%；路面基层完成总量的26.1%
A9: 4 | B9: 箐口山隧道 | C9: 5.855 | D9: 2.09033 | E9: 0.88 | F9: 0.1098 | G9: 0.4697 | H9: 53.4% | I9: 1.1298 | J9: 1.0148 | K9: 54.0% | L9: 5165 | M9: 累计完成：路基土石方44.8万立方米，占总量的94.9%；挡防工程2.41万立方米，占总量的100%；涵洞完成总量的90%；隧道开挖1661米，占总量2281米的72.8%；隧道衬砌1368米，占总量2281米的60%。
A10: 5 | B10: 大雷路 | C10: 90.74 | D10: 3.867 | E10: 1.56 | F10: 0.143 | G10: 0.7202 | H10: 46.2% | I10: 2.0984 | J10: 1.6683 | K10: 54.3% | L10: 8168 | M10: 累计完成：路基土石方39.7万立方米，占总量的96.1%；挡防工程7.57万立方米，占总量的80.5%；涵洞工程完成总量的94%;路面底基层完成总量的67.2%，路面基层完成总量的52.4%，路面下面层完成总量的48.3%，路面上面层完成总量的26.2%。
A11: 6 | B11: 俄安路 | C11: 32.4 | D11: 2.5997 | E11: 1.16 | F11: 0.0437 | G11: 0.3775 | H11: 32.5% | I11: 1.6271 | J11: 1.273 | K11: 62.6% | L11: 8486 | M11: 累计完成：路基土石方79.12万立方米，占总量的100%；挡防工程12.3万立方米,占总量的80.2%；涵洞工程完成总量的96.6%;桥梁下部完成总量的100%,梁板预制完成总量的100%;路面垫层完成总量的82%，基层完成总量的7.4%。
A12: 7 | B12: 海磨路 | C12: 53.5 | D12: 3.847 | E12: 1.33 | F12: 0.0767 | G12: 0.2447 | H12: 18.4% | I12: 1.6937 | J12: 1.2922 | K12: 44.0% | L12: 8668 | M12: 累计完成：路基土石方151万立方米，占总量的99.8%；挡防工程2.14万立方米，占总量的93.8%，涵洞工程完成总量的81.7%。梁板预制完成总量的90%,安装完成总量的55%；路面垫层完成87.7%,路面底基层完成42.8%，路面基层完成62%。
A13: 8 | B13: 桑然路 | C13: 103.14 | D13: 21.42 | E13: 5.03 | F13: 1.4602 | G13: 2.5782 | H13: 51.3% | I13: 4.6475 | J13: 3.4203 | K13: 21.7% | L13: 11675 | M13: 累计完成：路基土石方180.48万立方米，占总量的60.5%；挡防工程31.83万立方米，占总量的74.5%,涵洞完成占总量的19.5%；桥梁桩基82根，占总量的38%，梁板预制4片；隧道掘进312米，占总量5847米的5.3%，二衬136米占总量的2.3%。
A14: 9 | B14: 唐花路 | C14: 95.57 | D14: 5.8033 | E14: 1.77 | F14: 0.3396 | G14: 0.516 | H14: 29.2% | I14: 0.516 | J14: 0.1684 | K14: 8.9% | M14: 累计完成：路基土石方23.8万方
A15: 10 | B15: 理小路 | C15: 96.44 | E15: 3 | F15: 0.011 | G15: 0.4596 | H15: =G15/E15 -> 15.3% | I15: 0.4596 | J15: 0.0395 | M15: 累计完成：挡防工程0.57万立方米，桥梁桩基68米。
A16: 11 | B16: 理黑路 | E16: 0.8
A17: 12 | B17: 色泥路 | C17: 150.981 | D17: 11.8069 | E17: 3.48 | F17: 0.4676 | G17: 1.3772 | H17: =G17/E17 -> 39.6% | I17: 1.3772 | J17: 1.1322 | K17: =I17/D17 -> 11.7% | M17: 累计完成：路基土石方90.11万方，占总量的34.1%；挡防工程7.17万方，占总量的33.3%；涵洞工程完成总量的12.7%；桥梁桩基27根，占总量的79%.
A18: 13 | B18: 色锣路 | C18: 106.672 | D18: 9.7665 | E18: 2.9 | F18: 0.278 | G18: 0.9655 | H18: =G18/E18 -> 33.3% | I18: 0.9655 | J18: 0.7555 | K18: =I18/D18 -> 9.9% | M18: 累计完成：路基土石方49.64万方，占总量的21.7%，挡防工程4.62万方，占总量的17.5%；涵洞完成总量的17.8%；桥梁桩基完成53%。
A19: 14 | B19: 稻木路 | C19: 26.362 | D19: 4.31 | E19: 1.2 | F19: 0.2233 | G19: 0.2233 | H19: =G19/E19 -> 18.6% | I19: 0.2233 | J19: 0.0733 | K19: =I19/D19 -> 5.2% | M19: 累计完成：路基土石方18.59万方，占总量的17，挡防工程0.13万方
A20: 合计 | E20: =SUM(E5:E19) -> 25.25 | F20: =SUM(F5:F19) -> 3.5199 | G20: =SUM(G5:G19) -> 9.1915 | H20: 36.4% | I20: =SUM(I5:I19) -> 26.4573 | J20: =SUM(J5:J19) -> 20.8204 | L20: =SUM(L5:L19) -> 119039

Sheet 7月
A1: 兴蜀公司管理项目投资及形象进度完成情况（截止2017年7月底）
M2: 统计：工程部
A3: 序号 | B3: 项目名称 | C3: 建设规模 (Km) | D3: 概算投资(亿元) | E3: 本年计划（亿元） | F3: 本月完成（亿元） | G3: 本年完成（亿元） | H3: 占年计划（%） | I3: 开工累计 完成（亿元） | K3: 占概算投资（%） | L3: 累计支付金额(万元） | M3: 累计形象进度完成情况
I4: 全部 | J4: 其中 建安
A5: 1 | B5: 雪山梁子 | C5: 隧道:7.966 | D5: 12.12 | E5: 1.36 | F5: 0.2134 | G5: 1.166 | H5: =G5/E5 -> 85.7% | I5: 10.5628 | J5: 9.2585 | K5: =I5/D5 -> 87.2% | L5: 70619 | M5: 累计完成：路基土石方106.43万方，占总量的100%；挡防工程隧道3.45万方，占总量的100%；涵洞完成100%；主洞开挖7965米，占总量的100%；隧道衬砌7940米，占总量的100%;洞外路面底基层完成占总量的100%，基层完成占总量的100%，下面层完成占总量的100%,上面层完成占总量的100%。
C6: 引道:10.946
A7: 2 | B7: 布拖冯家坪溜索改桥 | C7: 7.834 | D7: 1.03 | E7: 0.34 | F7: 0.0075 | G7: 0.1393 | H7: =G7/E7 -> 41.0% | I7: 0.6972 | J7: 0.4302 | K7: =I7/D7 -> 67.7% | L7: 2688 | M7: 累计完成：路基土石方0.21万立方米，占总量的48.8%；桥梁下部构造93%，劲性骨架全部完成，主拱圈劲性骨架钢管混凝土浇筑，主桥拱肋合拢。拱圈混凝土完成总量的12.4%。
A8: 3 | B8: 金阳对坪溜索改桥 | C8: 1.7 | D8: 1.34 | E8: 0.44 | F8: 0.0116 | G8: 0.1868 | H8: 42.5% | I8: 0.6917 | J8: 0.5267 | K8: 51.6% | L8: 3570 | M8: 累计完成：路基土石方8.31万立方米，占总量的100%；挡防工程2.25万立方米，占总量的98.78%。桥梁下部构造完成47.6%，劲性骨架加工完成100%，安装完成100%；钢管混凝土完成总量的83.45%；路面基层完成总量的72.7%
A9: 4 | B9: 箐口山隧道 | C9: 5.855 | D9: 2.09033 | E9: 0.88 | F9: 0.0996 | G9: 0.5693 | H9: 64.7% | I9: 1.2294 | J9: 1.1144 | K9: 58.8% | L9: 5165 | M9: 累计完成：路基土石方45.6万立方米，占总量的96.5%；挡防工程2.41万立方米，占总量的100%；涵洞完成总量的100%；路面底基层完成总量的34.4%，基层完成总量的36.9%，下面层完成总量的35.8%；隧道开挖1783米，占总量2281米的78.2%；隧道衬砌1495米，占总量2281米的65.5%。
A10: 5 | B10: 大雷路 | C10: 90.74 | D10: 3.867 | E10: 1.56 | F10: 0.1041 | G10: 0.8243 | H10: 52.8% | I10: 2.2025 | J10: 1.7724 | K10: 57.0% | L10: 8168 | M10: 累计完成：路基土石方39.7万立方米，占总量的96.1%；挡防工程7.82万立方米，占总量的83.3%；涵洞工程完成总量的94%;路面底基层完成总量的72%，路面基层完成总量的62.9%，路面下面层完成总量的48.3%，路面上面层完成总量的48.1%。
A11: 6 | B11: 俄安路 | C11: 32.4 | D11: 2.5997 | E11: 1.16 | F11: 0.0412 | G11: 0.4187 | H11: 36.1% | I11: 1.6683 | J11: 1.3142 | K11: 64.2% | L11: 8486 | M11: 累计完成：路基土石方79.12万立方米，占总量的100%；挡防工程12.56万立方米,占总量的81.9%；涵洞工程完成总量的96.6%;桥梁下部完成总量的100%,梁板预制完成总量的100%;路面垫层完成总量的96.9%，基层完成总量的27.7%,上面层完成总量的0.97%
A12: 7 | B12: 海磨路 | C12: 53.5 | D12: 3.847 | E12: 1.33 | F12: 0.0688 | G12: 0.3135 | H12: 23.6% | I12: 1.7625 | J12: 1.361 | K12: 45.8% | L12: 8668 | M12: 累计完成：路基土石方151.19万立方米，占总量的99.9%；挡防工程2.28万立方米，占总量的100%，涵洞工程完成总量的96.4%。梁板预制完成总量的100%,安装完成总量的55%；
A13: 8 | B13: 桑然路 | C13: 103.14 | D13: 21.42 | E13: 5.03 | F13: 0.4706 | G13: 3.0488 | H13: 60.6% | I13: 5.1181 | J13: 3.8909 | K13: 23.9% | L13: 11675 | M13: 累计完成：路基土石方205.87万立方米，占总量的67.4%；挡防工程35.45万立方米，占总量的82.9%,涵洞完成占总量的31.1%；桥梁桩基91根，占总量的42.1%，梁板预制4片；隧道掘进472米，占总量5847米的8%，二衬189米占总量的3.2%。
A14: 9 | B14: 唐花路 | C14: 95.57 | D14: 5.8033 | E14: 1.77 | F14: 0.2581 | G14: 0.7741 | H14: 43.7% | I14: 0.7741 | J14: 0.4265 | K14: 13.3% | M14: 累计完成：路基土石方78.94万方
A15: 10 | B15: 理小路 | C15: 96.44 | E15: 3 | F15: 0.0168 | G15: 0.4764 | H15: =G15/E15 -> 15.9% | I15: 0.4764 | J15: 0.0563 | M15: 累计完成：挡防工程0.9万立方米，桥梁桩基170米，梁板预制3片。
A16: 11 | B16: 理黑路 | E16: 0.8
A17: 12 | B17: 色泥路 | C17: 150.981 | D17: 11.8069 | E17: 3.48 | F17: 0.6047 | G17: 1.9819 | H17: =G17/E17 -> 57.0% | I17: 1.9819 | J17: 1.7369 | K17: =I17/D17 -> 16.8% | M17: 累计完成：路基土石方152.5万方，占总量的57.7%；挡防工程10.03万方，占总量的45.9%；涵洞工程完成总量的27.3%；桥梁桩基36根，占总量的94.7%.
A18: 13 | B18: 色锣路 | C18: 106.672 | D18: 9.7665 | E18: 2.9 | F18: 0.3391 | G18: 1.3046 | H18: =G18/E18 -> 45.0% | I18: 1.3046 | J18: 1.0946 | K18: =I18/D18 -> 13.4% | M18: 累计完成：路基土石方60.84万方，占总量的26.5%，挡防工程6.15万方，占总量的23.2%；涵洞完成总量的28.1%；桥梁桩基完成66%。
A19: 14 | B19: 稻木路 | C19: 26.362 | D19: 4.31 | E19: 1.2 | F19: 0.0283 | G19: 0.2516 | H19: =G19/E19 -> 21.0% | I19: 0.2516 | J19: 0.1016 | K19: =I19/D19 -> 5.8% | M19: 累计完成：路基土石方24.09万方，占总量的22%，挡防工程0.35万方
A20: 合计 | E20: =SUM(E5:E19) -> 25.25 | F20: =SUM(F5:F19) -> 2.2638 | G20: =SUM(G5:G19) -> 11.4553 | H20: 45.4% | I20: =SUM(I5:I19) -> 28.7211 | J20: =SUM(J5:J19) -> 23.0842 | L20: =SUM(L5:L19) -> 119039

Sheet 8月
A1: 兴蜀公司管理项目投资及形象进度完成情况（截止2017年8月底）
M2: 统计：工程部
A3: 序号 | B3: 项目名称 | C3: 建设规模 (Km) | D3: 概算投资(亿元) | E3: 本年计划（亿元） | F3: 本月完成（亿元） | G3: 本年完成（亿元） | H3: 占年计划（%） | I3: 开工累计 完成（亿元） | K3: 占概算投资（%） | L3: 累计支付金额(万元） | M3: 累计形象进度完成情况
I4: 全部 | J4: 其中 建安
A5: 1 | B5: 雪山梁子 | C5: 隧道:7.966 | D5: 12.12 | E5: 1.36 | F5: 0.294 | G5: 1.46 | H5: =G5/E5 -> 107.4% | I5: 10.857 | J5: 9.5525 | K5: =I5/D5 -> 89.6% | L5: 70619 | M5: 累计完成：路基土石方106.43万方，占总量的100%；挡防工程隧道3.45万方，占总量的100%；涵洞完成100%；主洞开挖7965米，占总量的100%；隧道衬砌7940米，占总量的100%;洞外路面底基层完成占总量的100%，基层完成占总量的100%，下面层完成占总量的100%,上面层完成占总量的100%。
C6: 引道:10.946
A7: 2 | B7: 布拖冯家坪溜索改桥 | C7: 7.834 | D7: 1.03 | E7: 0.34 | F7: 0.01 | G7: 0.1449 | H7: =G7/E7 -> 42.6% | I7: 0.7072 | J7: 0.4402 | K7: =I7/D7 -> 68.7% | L7: 2688 | M7: 累计完成：路基土石方0.21万立方米，占总量的48.8%；桥梁下部构造93%，劲性骨架全部完成，主拱圈劲性骨架钢管混凝土浇筑，主桥拱肋合拢。拱圈混凝土完成总量的20.5%。
A8: 3 | B8: 金阳对坪溜索改桥 | C8: 1.7 | D8: 1.34 | E8: 0.44 | F8: 0.0115 | G8: 0.2433 | H8: 55.3% | I8: 0.7032 | J8: 0.5382 | K8: 52.5% | L8: 3570 | M8: 累计完成：路基土石方8.31万立方米，占总量的100%；挡防工程2.25万立方米，占总量的98.78%。桥梁下部构造完成47.6%，劲性骨架加工完成100%，安装完成100%；钢管混凝土完成总量的83.45%；路面基层完成总量的72.7%,面层完成总量的66%。
A9: 4 | B9: 箐口山隧道 | C9: 5.855 | D9: 2.09033 | E9: 0.88 | F9: 0.0847 | G9: 0.654 | H9: 74.3% | I9: 1.3141 | J9: 1.1991 | K9: 62.9% | L9: 5165 | M9: 累计完成：路基土石方46.6万立方米，占总量的98.7%；挡防工程2.41万立方米，占总量的100%；涵洞完成总量的100%；路面底基层完成总量的34.4%，基层完成总量的36.9%，下面层完成总量的35.8%；隧道开挖1969米，占总量2281米的86.3%；隧道衬砌1655米，占总量2281米的72.1%。
A10: 5 | B10: 大雷路 | C10: 90.74 | D10: 3.867 | E10: 1.56 | F10: 0.037 | G10: 0.8613 | H10: 55.2% | I10: 2.2395 | J10: 1.8094 | K10: 57.9% | L10: 8168 | M10: 累计完成：路基土石方39.7万立方米，占总量的96.1%；挡防工程7.92万立方米，占总量的84.3%；涵洞工程完成总量的94%;路面底基层完成总量的75.4%，路面基层完成总量的67%，路面下面层完成总量的48.3%，路面上面层完成总量的48.1%。
A11: 6 | B11: 俄安路 | C11: 32.4 | D11: 2.5997 | E11: 1.16 | F11: 0.2166 | G11: 0.6353 | H11: 54.8% | I11: 1.8849 | J11: 1.5307 | K11: 72.5% | L11: 8486 | M11: 累计完成：路基土石方79.12万立方米，占总量的100%；挡防工程12.83万立方米,占总量的83.6%；涵洞工程完成总量的97.7%;桥梁下部完成总量的100%,梁板预制完成总量的100%;路面垫层完成总量的96.9%，基层完成总量的43.3%,上面层完成总量的25.2%
A12: 7 | B12: 海磨路 | C12: 53.5 | D12: 3.847 | E12: 1.33 | F12: 0.0986 | G12: 0.4121 | H12: 31.0% | I12: 1.8611 | J12: 1.4595 | K12: 48.4% | L12: 8668 | M12: 累计完成：路基土石方151.29万立方米，占总量的100%；挡防工程2.28万立方米，占总量的100%，涵洞工程完成总量的99.3%。梁板预制完成总量的100%,安装完成总量的85%；
A13: 8 | B13: 桑然路 | C13: 103.14 | D13: 21.42 | E13: 5.03 | F13: 0.4755 | G13: 3.5243 | H13: 70.1% | I13: 5.5936 | J13: 4.3664 | K13: 26.1% | L13: 11675 | M13: 累计完成：路基土石方238.63万立方米，占总量的78.1%；挡防工程38.74万立方米，占总量的90.6%,涵洞完成占总量的39.5%；桥梁桩基94根，占总量的43.5%，梁板预制9片，安装3片；隧道掘进523米，占总量5847米的9%，二衬226米占总量的4%。
A14: 9 | B14: 唐花路 | C14: 95.57 | D14: 5.8033 | E14: 1.77 | F14: 0.4285 | G14: 1.2026 | H14: 67.9% | I14: 1.2026 | J14: 0.855 | K14: 20.7% | M14: 累计完成：路基土石方113.6万方,占总量的65.7%；涵洞10道。
A15: 10 | B15: 理小路 | C15: 96.44 | E15: 3 | F15: 0.034 | G15: 0.5104 | H15: =G15/E15 -> 17.0% | I15: 0.5104 | J15: 0.0903 | M15: 累计完成：路基土石方0.8万方，挡防工程1.3万立方米，桥梁桩基249米，梁板预制8片。
A16: 11 | B16: 理黑路 | E16: 0.8
A17: 12 | B17: 色泥路 | C17: 150.981 | D17: 11.8069 | E17: 3.48 | F17: 0.5469 | G17: 2.5288 | H17: =G17/E17 -> 72.7% | I17: 2.5288 | J17: 2.2838 | K17: =I17/D17 -> 21.4% | M17: 累计完成：路基土石方183.05万方，占总量的69.3%；挡防工程11.63万方，占总量的53.2%；涵洞工程完成总量的56.3%；桥梁桩基39根，占总量的97.5%，梁板预制69片，占总量的70.4%.
A18: 13 | B18: 色锣路 | C18: 106.672 | D18: 9.7665 | E18: 2.9 | F18: 0.4829 | G18: 1.7875 | H18: =G18/E18 -> 61.6% | I18: 1.7875 | J18: 1.5775 | K18: =I18/D18 -> 18.3% | M18: 累计完成：路基土石方66.27万方，占总量的28.9%，挡防工程10.67万方，占总量的40.3%；涵洞完成总量的50.4%；桥梁桩基完成97.5%。
A19: 14 | B19: 稻木路 | C19: 26.362 | D19: 4.31 | E19: 1.2 | F19: 0.0645 | G19: 0.3161 | H19: =G19/E19 -> 26.3% | I19: 0.3161 | J19: 0.1661 | K19: =I19/D19 -> 7.3% | M19: 累计完成：路基土石方32.59万方，占总量的29.7%，挡防工程1.26万方,占总量的11.6%。
A20: 合计 | E20: =SUM(E5:E19) -> 25.25 | F20: =SUM(F5:F19) -> 2.7847 | G20: =SUM(G5:G19) -> 14.2806 | H20: 56.6% | I20: =SUM(I5:I19) -> 31.506 | J20: =SUM(J5:J19) -> 25.8687 | L20: =SUM(L5:L19) -> 119039

Sheet 9月报
A1: 兴蜀公司管理项目投资及形象进度完成情况（截止2017年9月底）
M2: 统计：工程部
A3: 序号 | B3: 项目名称 | C3: 建设规模 (Km) | D3: 概算投资(亿元) | E3: 本年计划（亿元） | F3: 本月完成（亿元） | G3: 本年完成（亿元） | H3: 占年计划（%） | I3: 开工累计 完成（亿元） | K3: 占概算投资（%） | L3: 累计支付金额(万元） | M3: 累计形象进度完成情况
I4: 全部 | J4: 其中 建安
A5: 1 | B5: 雪山梁子 | C5: 隧道:7.966 | D5: 12.12 | E5: 1.96 | F5: 0.5243 | G5: 1.9843 | H5: =G5/E5 -> 101.2% | I5: 11.3813 | J5: 9.7448 | K5: =I5/D5 -> 93.9% | L5: 70619 | M5: 累计完成：路基土石方106.43万方，占总量的100%；挡防工程隧道3.45万方，占总量的100%；涵洞完成100%；主洞开挖7965米，占总量的100%；隧道衬砌7940米，占总量的100%;洞外路面底基层完成占总量的100%，基层完成占总量的100%，下面层完成占总量的100%,上面层完成占总量的100%。
C6: 引道:10.946
A7: 2 | B7: 布拖冯家坪溜索改桥 | C7: 7.834 | D7: 1.03 | E7: 0.44 | F7: 0.1752 | G7: 0.3201 | H7: =G7/E7 -> 72.8% | I7: 0.8824 | J7: 0.4654 | K7: =I7/D7 -> 85.7% | L7: 2688 | M7: 累计完成：路基土石方0.21万立方米，占总量的48.8%；桥梁下部构造93%，劲性骨架全部完成，主拱圈劲性骨架钢管混凝土浇筑，主桥拱肋合拢。拱圈混凝土完成总量的48.5%。
A8: 3 | B8: 金阳对坪溜索改桥 | C8: 1.7 | D8: 1.34 | E8: 0.54 | F8: 0.1334 | G8: 0.3767 | H8: 69.8% | I8: 0.8366 | J8: 0.5716 | K8: 62.4% | L8: 3570 | M8: 累计完成：路基土石方8.31万立方米，占总量的100%；挡防工程2.25万立方米，占总量的98.78%。桥梁下部构造完成47.6%，劲性骨架加工完成100%，安装完成100%,梁片预制1片；钢管混凝土完成总量的83.45%；路面基层完成总量的72.7%,面层完成总量的71.7%。
A9: 4 | B9: 箐口山隧道 | C9: 5.855 | D9: 2.09033 | E9: 1.01 | F9: 0.1603 | G9: 0.8143 | H9: 80.6% | I9: 1.4744 | J9: 1.2944 | K9: 70.5% | L9: 5165 | M9: 累计完成：路基土石方46.6万立方米，占总量的99.3%；挡防工程2.41万立方米，占总量的100%；涵洞完成总量的100%；路面底基层完成总量的34.4%，基层完成总量的36.9%，下面层完成总量的35.8%；隧道开挖2163米，占总量2281米的94.8%；隧道衬砌1786米，占总量2281米的78.3%。
A10: 5 | B10: 大雷路 | C10: 90.74 | D10: 3.867 | E10: 1.81 | F10: 0.5214 | G10: 1.3827 | H10: 76.4% | I10: 2.7609 | J10: 1.9208 | K10: 71.4% | L10: 8168 | M10: 累计完成：路基土石方39.7万立方米，占总量的96.1%；挡防工程7.92万立方米，占总量的84.3%；涵洞工程完成总量的94%;路面底基层完成总量的88.6%，路面基层完成总量的87%，路面下面层完成总量的53.3%，路面上面层完成总量的52.9%。
A11: 6 | B11: 俄安路 | C11: 32.4 | D11: 2.5997 | E11: 1.16 | F11: 0.1556 | G11: 0.7909 | H11: 68.2% | I11: 2.0405 | J11: 1.5693 | K11: 78.5% | L11: 8486 | M11: 累计完成：路基土石方79.12万立方米，占总量的100%；挡防工程13.17万立方米,占总量的85.9%；涵洞工程完成总量的98.9%;桥梁下部完成总量的100%,梁板预制完成总量的100%;路面垫层完成总量的100%，基层完成总量的64.8%,上面层完成总量的25.9%
A12: 7 | B12: 海磨路 | C12: 53.5 | D12: 3.847 | E12: 1 | F12: 0.331 | G12: 0.7431 | H12: 74.3% | I12: 2.1921 | J12: 1.5285 | K12: 57.0% | L12: 8668 | M12: 累计完成：路基土石方151.29万立方米，占总量的100%；挡防工程2.28万立方米，占总量的100%，涵洞工程完成总量的99.3%。梁板预制完成总量的100%,安装完成总量的85%；路面底基层100%完成，上面层完成总量的48.6%。
A13: 8 | B13: 桑然路 | C13: 103.14 | D13: 21.42 | E13: 5.03 | F13: 1.1277 | G13: 4.652 | H13: 92.5% | I13: 6.7213 | J13: 4.9741 | K13: 31.4% | L13: 11675 | M13: 累计完成：路基土石方249.43万立方米，占总量的81.7%；挡防工程40.47万立方米，占总量的94.7%,涵洞完成占总量的48.9%；桥梁桩基94根，占总量的58.3%，梁板预制22片，安装3片；隧道掘进772米，占总量5847米的13.2%，二衬431米占总量的7.4%。
A14: 9 | B14: 唐花路 | C14: 95.57 | D14: 5.8033 | E14: 1.58 | F14: 0.3188 | G14: 1.5214 | H14: 96.3% | I14: 1.5214 | J14: 1.0456 | K14: 26.2% | M14: 累计完成：路基土石方161.43万方,占总量的93.4%；涵洞18道
A15: 10 | B15: 理小路 | C15: 96.1 | D15: 19.5835 | E15: 0.88 | F15: 0.1842 | G15: 0.6946 | H15: =G15/E15 -> 78.9% | I15: 0.6946 | J15: 0.1045 | K15: 3.5% | M15: 累计完成：路基土石方1.06万方，挡防工程1.43万立方米，涵洞2道；桥梁桩基364米，梁板预制10片。
A16: 11 | B16: 理黑路 | E16: 0.3
A17: 12 | B17: 色泥路 | C17: 150.981 | D17: 11.8069 | E17: 3.78 | F17: 1.0827 | G17: 3.6115 | H17: =G17/E17 -> 95.5% | I17: 3.6115 | J17: 2.9115 | K17: =I17/D17 -> 30.6% | M17: 累计完成：路基土石方199.9万方，占总量的75.7%；挡防工程13.18万方，占总量的60.3%；涵洞工程完成总量的78.2%；桥梁桩基40根，占总量的95.2%，梁板预88片，占总量的83%，安装25片，占总量的23.6%.
A18: 13 | B18: 色锣路 | C18: 106.672 | D18: 9.7665 | E18: 3.2 | F18: 0.7325 | G18: 2.52 | H18: =G18/E18 -> 78.8% | I18: 2.52 | J18: 2.31 | K18: =I18/D18 -> 25.8% | M18: 累计完成：路基土石方74.77万方，占总量的32.7%，挡防工程14.36万方，占总量的54.2%；涵洞完成总量的59.3%；桥梁桩基完成100%，梁片预制完成45片，占总量的52.9%，安装3片，占总量的3.5%。
A19: 14 | B19: 稻木路 | C19: 26.362 | D19: 4.31 | E19: 1.2 | F19: 0.3406 | G19: 0.6567 | H19: =G19/E19 -> 54.7% | I19: 0.6567 | J19: 0.3767 | K19: =I19/D19 -> 15.2% | M19: 累计完成：路基土石方57.84万方，占总量的52.8%，挡防工程2.55万方,占总量的23.5%；桩基完成5根，占总量的4.3%。
A20: 15 | B20: 乡得路 | C20: 99.253 | D20: 25.7759 | E20: 1.2
A21: 16 | B21: 石洛、满洛、宜达路 | E21: 0.4
A22: 17 | B22: 九石路 | E22: 0.2
A23: 合计 | E23: =SUM(E5:E22) -> 25.69 | F23: =SUM(F5:F22) -> 5.7877 | G23: =SUM(G5:G22) -> 20.0683 | H23: 78.1% | I23: =SUM(I5:I22) -> 37.2937 | J23: =SUM(J5:J22) -> 28.8172 | L23: =SUM(L5:L22) -> 119039

Sheet Sheet1
